fUSD/lending_fUSD_20250407
["ID","MTS","AMOUNT","RATE_DAILY","PERIOD"]
[357297679,1743997046631,344.91441206,0.0003963,30]
[357297680,1743997047231,357.6762453,0.0003963,30]
[357297681,1743997047872,370.91026638,0.0003963,30]
[357297682,1743997048577,384.63394623,0.0003963,30]
[357297683,1743997049177,384.63394623,0.0003963,30]
[357297684,1743997157018,200.0,0.00039629,30]
[357297685,1743997157670,207.4,0.00039629,30]
[357297686,1743997158340,215.0738,0.00039629,30]
[357297687,1743997159010,223.0315306,0.00039629,30]
[357297688,1743997159636,231.28369723,0.00039629,30]
[357297689,1743997160903,239.84119403,0.00039629,30]
[357297690,1743997161402,248.71531821,0.00039629,30]
[357297691,1743997161802,257.91778498,0.00039629,30]
[357297692,1743997162661,267.46074303,0.00039629,30]
[357297693,1743997163439,277.35679052,0.00039629,30]
[357297694,1743997164134,287.61899177,0.00039629,30]
[357297695,1743997164790,298.26089446,0.00039629,30]
[357297696,1743997165461,309.29654756,0.00039629,30]
[357297697,1743997166070,320.74051982,0.00039629,30]
[357297698,1743997166728,332.60791905,0.00039629,30]
[357297699,1743997167306,344.91441206,0.00039629,30]
[357297700,1743997167976,357.6762453,0.00039629,30]
[357297701,1743997168631,370.91026638,0.00039629,30]
[357297702,1743997169278,384.63394623,0.00039629,30]
[357297703,1743997169925,384.63394623,0.00039629,30]
[357297704,1743997203809,428.82,0.00015,7]
[357297705,1743997261114,217.48858,0.0002,23]
[357297706,1743997261155,217.48858,0.00025,23]
[357297707,1743997336220,200.0,0.00039629,30]
[357297708,1743997336840,207.4,0.00039629,30]
[357297709,1743997337471,215.0738,0.00039629,30]
[357297710,1743997338637,223.0315306,0.00039629,30]
[357297711,1743997338818,231.28369723,0.00039629,30]
[357297712,1743997339488,239.84119403,0.00039629,30]
[357297713,1743997340104,248.71531821,0.00039629,30]
[357297714,1743997340734,257.91778498,0.00039629,30]
[357297715,1743997341354,267.46074303,0.00039629,30]
[357297716,1743997341982,277.35679052,0.00039629,30]
[357297717,1743997342709,287.61899177,0.00039629,30]
[357297718,1743997343498,298.26089446,0.00039629,30]
[357297719,1743997344124,309.29654756,0.00039629,30]
[357297720,1743997344986,320.74051982,0.00039629,30]
[357297721,1743997345620,332.60791905,0.00039629,30]
[357297722,1743997346872,344.91441206,0.00039629,30]
[357297723,1743997347451,711.0,0.00033,120]
[357297724,1743997348174,357.6762453,0.00039629,30]
[357297725,1743997349761,370.91026638,0.00039629,30]
[357297726,1743997349910,384.63394623,0.00039629,30]
[357297727,1743997350530,384.63394623,0.00039629,30]
[357297730,1743997635621,200.0,0.00039629,30]
[357297732,1743997636883,207.4,0.00039629,30]
[357297733,1743997637560,215.0738,0.00039629,30]
[357297736,1743997640365,223.0315306,0.00039629,30]
[357297737,1743997641055,231.28369723,0.00039629,30]
[357297738,1743997642009,239.84119403,0.00039629,30]
[357297739,1743997642339,248.71531821,0.00039629,30]
[357297740,1743997643008,257.91778498,0.00039629,30]
[357297741,1743997643647,267.46074303,0.00039629,30]
[357297748,1743997645663,277.35679052,0.00039629,30]
[357297749,1743997646450,287.61899177,0.00039629,30]
[357297750,1743997647107,298.26089446,0.00039629,30]
[357297751,1743997647783,309.29654756,0.00039629,30]
[357297752,1743997648431,320.74051982,0.00039629,30]
[357297753,1743997649080,332.60791905,0.00039629,30]
[357297754,1743997649711,344.91441206,0.00039629,30]
[357297755,1743997650398,357.6762453,0.00039629,30]
[357297756,1743997650980,370.91026638,0.00039629,30]
[357297757,1743997651667,384.63394623,0.00039629,30]
[357297758,1743997652341,384.63394623,0.00039629,30]
[357297770,1743997832025,-693.95,0.0001688,2]
[357297771,1743997832034,-329.102594,0.00018577,2]
[357297772,1743997832044,-250.0,0.00018671,2]
[357297773,1743997832054,-200.0,0.00018705,2]
[357297774,1743997832063,-416.71922884,0.00018708,2]
[357297775,1743997832073,-170.23063091,0.00018715,2]
[357297776,1743997832082,-13483.79754625,0.0001879,2]
[357297777,1743997832098,-406.0,0.0001879,2]
[357297778,1743997832109,-259.28204108,0.0001879,2]
[357297779,1743997837567,-523.27433055,0.0001879,2]
[357297786,1743997837939,-826.75865235,0.0001879,2]
[357297788,1743997837963,-3848.41652977,0.0001879,2]
[357297789,1743997837973,-3886.58347023,0.0001889,2]
[357297790,1743997837995,-447.9066844,0.0001889,2]
[357297791,1743997838006,-1594.30265946,0.0001889,2]
[357297792,1743997838031,-1579.13148732,0.0001889,2]
[357297793,1743997838042,-16392.07569859,0.0001889,2]
[357297794,1743997838053,-416.71922884,0.00018908,2]
[357297796,1743997838062,-9688.0,0.00018971,2]
[357297798,1743997838071,-250.0,0.00019,2]
[357297800,1743997838081,-200.0,0.00019023,7]
[357297801,1743997838090,-250.0,0.00019137,2]
[357297803,1743997838100,-693.95,0.00019144,2]
[357297805,1743997838109,-155.8,0.00019251,2]
[357297807,1743997838118,-179.0,0.00019287,2]
[357297809,1743997838128,-170.2306309,0.00019299,2]
[357297811,1743997838137,-416.71922884,0.00019369,2]
[357297813,1743997838147,-2123.6308437,0.00019399,2]
[357297815,1743997838157,-1038.99,0.00019468,2]
[357297817,1743997838167,-416.71922884,0.00019508,2]
[357297818,1743997838176,-1000.0,0.00019698,2]
[357297819,1743997838187,-271.28,0.00019737,2]
[357297820,1743997838197,-1155.98,0.00019816,2]
[357297821,1743997838216,-416.71922887,0.0001989,2]
[357297822,1743997838226,-2125.34796049,0.000199,2]
[357297823,1743997838237,-531.14851368,0.000199,2]
[357297824,1743997838250,-304.50612583,0.000199,2]
[357297825,1743997838259,-2390.2882,0.000199,2]
[357297826,1743997838269,-968.6679,0.000199,2]
[357297827,1743997838279,-161.34585669,0.000199,2]
[357297828,1743997838289,-502.94065152,0.00019973,2]
[357297829,1743997838298,-500.0,0.00019973,2]
[357297830,1743997838308,-1930.0,0.0002,2]
[357297831,1743997838317,-16474.85126596,0.0002,2]
[357297832,1743997838329,-3299.99986,0.0002,2]
[357297833,1743997838366,-3655.49781821,0.0002,2]
[357297834,1743997838380,-556.56698374,0.0002,2]
[357297835,1743997838393,-596.0650456,0.0002,2]
[357297836,1743997838407,-553.60608649,0.0002,2]
[357297837,1743997838419,-273.26443445,0.0002,2]
[357297838,1743997838435,-753.97057932,0.0002,2]
[357297839,1743997838447,-394.52199375,0.0002,2]
[357297840,1743997838463,-387.27,0.0002,2]
[357297871,1743997845446,-912.37031504,0.0002,2]
[357297873,1743997845916,-382.02945126,0.0002,2]
[357297874,1743997845927,-555.0,0.0002,2]
[357297875,1743997845943,-287.18101747,0.0002,2]
[357297877,1743997845954,-19378.93680958,0.0002,2]
[357297879,1743997845968,-659.45395237,0.0002,2]
[357297881,1743997845980,-443.94247066,0.0002,2]
[357297883,1743997845991,-4616.77106985,0.0002,2]
[357297886,1743997846006,-1454.7775718,0.0002,2]
[357297892,1743997846022,-4541.22794465,0.0002,2]
[357297895,1743997846033,-3998.83614104,0.0002,2]
[357297897,1743997846044,-1563.08403936,0.0002,2]
[357297899,1743997846063,-1552.07628144,0.0002,2]
[357297901,1743997846074,-1429.87219423,0.0002,2]
[357297903,1743997846128,-375.92900338,0.0002,2]
[357297904,1743997846140,-267.00000895,0.0002,2]
[357297905,1743997846151,-271.0618873,0.0002,2]
[357297906,1743997846162,-305.548,0.0002,2]
[357297907,1743997846217,-30564.79999974,0.0002,2]
[357297908,1743997846227,-3894.0,0.0002,2]
[357297909,1743997846311,-321.14882329,0.0002,2]
[357297910,1743997846323,-423.28364624,0.0002,2]
[357297911,1743997846393,-5764.4950891,0.0002,2]
[357297912,1743997846448,-396751.97410401,0.0002,2]
[357297913,1743997846503,-3698.61128926,0.0002,2]
[357297914,1743997846515,-724.59903402,0.0002,2]
[357297917,1743997937296,-1671.2752095,0.00019399,2]
[357297918,1743997937317,-155.83865048,0.00019799,2]
[357297919,1743997937339,-300.0,0.00019899,2]
[357297920,1743997937360,-4472.88614002,0.000199,2]
[357297921,1743997937805,200.0,0.00039629,30]
[357297922,1743997938476,207.4,0.00039629,30]
[357297923,1743997939110,215.0738,0.00039629,30]
[357297924,1743997939749,223.0315306,0.00039629,30]
[357297925,1743997940438,231.28369723,0.00039629,30]
[357297926,1743997941072,239.84119403,0.00039629,30]
[357297927,1743997941731,248.71531821,0.00039629,30]
[357297928,1743997942553,257.91778498,0.00039629,30]
[357297929,1743997943083,267.46074303,0.00039629,30]
[357297930,1743997943827,277.35679052,0.00039629,30]
[357297931,1743997944474,287.61899177,0.00039629,30]
[357297932,1743997945115,298.26089446,0.00039629,30]
[357297933,1743997945756,309.29654756,0.00039629,30]
[357297934,1743997946687,320.74051982,0.00039629,30]
[357297935,1743997947019,332.60791905,0.00039629,30]
[357297936,1743997947636,344.91441206,0.00039629,30]
[357297937,1743997948298,357.6762453,0.00039629,30]
[357297938,1743997949022,370.91026638,0.00039629,30]
[357297939,1743997949650,384.63394623,0.00039629,30]
[357297940,1743997950282,384.63394623,0.00039629,30]
[357297942,1743997977070,-300.0,0.00019399,2]
[357297943,1743997986981,507.399,0.00039629,120]
[357297944,1743998092880,161.16,0.00032932,120]
[357297946,1743998241115,200.0,0.00039629,30]
[357297947,1743998241790,207.4,0.00039629,30]
[357297948,1743998242414,215.0738,0.00039629,30]
[357297949,1743998243058,223.0315306,0.00039629,30]
[357297950,1743998243998,231.28369723,0.00039629,30]
[357297951,1743998244339,239.84119403,0.00039629,30]
[357297952,1743998244955,248.71531821,0.00039629,30]
[357297953,1743998245586,257.91778498,0.00039629,30]
[357297954,1743998246366,267.46074303,0.00039629,30]
[357297955,1743998247031,277.35679052,0.00039629,30]
[357297956,1743998247689,287.61899177,0.00039629,30]
[357297957,1743998248325,298.26089446,0.00039629,30]
[357297958,1743998248971,309.29654756,0.00039629,30]
[357297959,1743998249992,320.74051982,0.00039629,30]
[357297960,1743998250252,332.60791905,0.00039629,30]
[357297961,1743998250901,344.91441206,0.00039629,30]
[357297962,1743998251549,357.6762453,0.00039629,30]
[357297963,1743998252193,370.91026638,0.00039629,30]
[357297964,1743998252887,370.91026638,0.00039629,30]
[357297969,1743998836097,214.11146232,0.00039628,30]
[357297982,1743999009737,199.71079795,0.00039628,30]
[357297987,1743999032130,-765.15,0.0001805,2]
[357297988,1743999032140,-524.89299891,0.00019399,2]
[357297989,1743999032149,-232.78589189,0.00019399,2]
[357297990,1743999032186,-1013.95957271,0.00019399,2]
[357297991,1743999032196,-200.0,0.00019456,2]
[357297992,1743999032205,-208.21056497,0.000195,2]
[357297993,1743999032215,-1045.355,0.000196,2]
[357297994,1743999032224,-3409.23,0.00019619,2]
[357297995,1743999032234,-200.0,0.00019685,2]
[357297996,1743999032243,-250.0,0.00019774,2]
[357297997,1743999032253,-250.0,0.00019855,2]
[357297998,1743999032263,-250.0,0.00019855,2]
[357297999,1743999032273,-150.0,0.00019889,2]
[357298000,1743999032282,-300.0,0.00019889,2]
[357298001,1743999032292,-1604.93908348,0.0001989,2]
[357298002,1743999032302,-153.0,0.00019899,2]
[357298003,1743999032312,-7858.77195998,0.000199,2]
[357298004,1743999032321,-7132.3934,0.000199,2]
[357298005,1743999032331,-10005.29804673,0.000199,2]
[357298006,1743999032347,-2181.04084915,0.000199,2]
[357298007,1743999032363,-179.69560412,0.000199,2]
[357298008,1743999032374,-203.0406,0.000199,2]
[357298009,1743999032383,-179.31922393,0.000199,2]
[357298010,1743999032393,-122.1682472,0.000199,2]
[357298011,1743999032408,-5201.8355525,0.000199,2]
[357298012,1743999032420,-7055.96234725,0.000199,2]
[357298013,1743999032449,-3881.81654788,0.000199,2]
[357298014,1743999032473,-326.65220517,0.000199,2]
[357298034,1743999032740,-742.84180649,0.000199,2]
[357298037,1743999032750,-155.750076,0.000199,2]
[357298040,1743999032760,-5129.12176521,0.000199,2]
[357298043,1743999032770,-159.3061,0.000199,2]
[357298046,1743999032779,-162.80166062,0.000199,2]
[357298049,1743999032789,-151.9448706,0.000199,2]
[357298050,1743999032798,-1952.68989166,0.000199,2]
[357298053,1743999032808,-583.9528958,0.000199,2]
[357298056,1743999032818,-503.39282083,0.00019973,2]
[357298059,1743999032828,-500.0,0.00019973,2]
[357298061,1743999032839,-166.78825991,0.0001999,2]
[357298064,1743999032849,-12098.6381789,0.00019995,2]
[357298067,1743999032859,-919.45922761,0.00019995,2]
[357298069,1743999032872,-4074.27038845,0.00019995,2]
[357298072,1743999032884,-7517.96772444,0.00019995,2]
[357298075,1743999032895,-1633.85535463,0.0002,2]
[357298078,1743999032917,-160.14464537,0.0002,2]
[357298081,1743999032927,-582.65016331,0.0002,2]
[357298110,1743999038120,-1386879.24406761,0.0002,2]
[357298111,1743999038271,-418.035,0.0002,2]
[357298112,1743999038285,-443.7343977,0.0002,2]
[357298113,1743999038297,-1434.28846063,0.0002,2]
[357298114,1743999038424,-311.67730095,0.0002,2]
[357298115,1743999038435,-1122.83459252,0.0002,2]
[357298288,1743999040214,-301.33839278,0.00019563,2]
[357298290,1743999040223,-414.23147958,0.0002,2]
[357298312,1743999040425,-3481.65949507,0.0002,2]
[357298314,1743999040437,-4254.592,0.0002,2]
[357298330,1743999040587,-3924.09701614,0.0002,2]
[357298331,1743999040642,-9096.64373114,0.0002,2]
[357298332,1743999040653,-8947.21879473,0.0002,2]
[357298333,1743999040670,-8943.78386462,0.0002,2]
[357298334,1743999040681,-9077.54866152,0.0002,2]
[357298335,1743999040692,-8943.84023489,0.0002,2]
[357298746,1743999044826,-491.095,0.0002,2]
[357298886,1743999046164,-901.9,0.0002,2]
[357298889,1743999046177,-574.64576369,0.0002,2]
[357298894,1743999046219,-10890.46,0.0002,2]
[357298912,1743999046400,-31055.4461936,0.0002,2]
[357298914,1743999046418,-78497.60769259,0.0002,2]
[357298916,1743999046431,-40752.87048046,0.0002,2]
[357298918,1743999046440,-26350.40633352,0.0002,2]
[357298919,1743999046449,-187.16117831,0.0002,2]
[357298921,1743999046459,-202.3989233,0.0002,2]
[357298923,1743999046468,-548.58128774,0.0002,4]
[357298926,1743999046483,-1413.65337703,0.0002,4]
[357299482,1743999052513,3119.2,0.00033,120]
[357303665,1743999196052,293.05,0.0002481,120]
[357303666,1743999196268,293.05,0.00027911,120]
[357303667,1743999196675,293.05,0.00031012,120]
[357303668,1743999216293,-200.0,0.00020161,7]
[357303669,1743999226624,-750.0,0.00019399,2]
[357303670,1743999296052,852.391,0.00039623,30]
[357303671,1743999437074,228.38,0.00032932,120]
[357303672,1743999446993,2000.0,0.00039623,30]
[357303674,1743999728173,697.3985,7.945e-05,2]
[357303675,1743999853179,-176.99,0.00016712,2]
[357303676,1743999872605,-250.0,0.00017856,2]
[357303677,1743999928320,32447.16210232,0.00039618,30]
[357303678,1743999997490,399.301,0.00033,120]
[357303679,1744000008113,638.759638,0.00039618,30]
[357303680,1744000018965,395.37585007,0.00015,14]
[357303684,1744000087555,4913.09075639,0.00039618,60]
[357303685,1744000119098,-2725.71986506,0.000149,2]
[357303696,1744000149722,-9873.2139302,0.00015,2]
[357303697,1744000149780,-9873.2139302,0.00015,2]
[357303698,1744000149839,-255.4480178,0.00015,2]
[357303700,1744000167946,-2000.0,0.00015,2]
[357303704,1744000174768,-10273.25144776,0.00015,2]
[357303705,1744000174822,-9905.97304229,0.00015,2]
[357303706,1744000176108,-6052.63831944,0.00015,2]
[357303707,1744000176131,-155.83865047,0.00018284,2]
[357303708,1744000176153,-250.0,0.00018384,2]
[357303709,1744000176174,-250.0,0.00018706,2]
[357303710,1744000176197,-250.0,0.00018867,2]
[357303711,1744000176219,-250.0,0.00019,2]
[357303712,1744000176240,-822.5590985,0.00019399,2]
[357303713,1744000176262,-185.81005793,0.000198,2]
[357303714,1744000176284,-1527.21,0.00019828,2]
[357303715,1744000176305,-6586.3038,0.000199,2]
[357303716,1744000176328,-24328.21167148,0.000199,2]
[357303717,1744000176355,-155.75007599,0.000199,2]
[357303718,1744000176376,-3014.71312014,0.000199,2]
[357303719,1744000176399,-725.02246975,0.000199,2]
[357303720,1744000176422,-1347.68948982,0.000199,2]
[357303721,1744000176445,-160.3228719,0.00019973,2]
[357303722,1744000176466,-500.0,0.00019973,2]
[357303723,1744000176488,-300.0,0.00019999,2]
[357303724,1744000176509,-714.35322463,0.00019999,2]
[357303725,1744000176532,-197.17326583,0.00019999,2]
[357303726,1744000176553,-188.85892567,0.00019999,2]
[357303727,1744000176575,-37.76533523,0.0002,4]
[357303728,1744000176600,-101759.08363489,0.0002,2]
[357303736,1744000232543,-616.9193238,0.00019399,2]
[357303737,1744000232553,-16.33071872,0.000199,2]
[357303738,1744000232565,-492.90731942,0.000199,2]
[357303739,1744000232608,-73.52733574,0.000199,2]
[357303740,1744000232618,-500.0,0.00019973,2]
[357303741,1744000232628,-239.5104396,0.00019973,2]
[357303742,1744000232639,-166.78825991,0.0001999,2]
[357303743,1744000232648,-300.0,0.00019999,2]
[357303744,1744000232658,-21936.42727974,0.0002,2]
[357303750,1744000238246,-295.79205076,0.0002,2]
[357303751,1744000238258,-309.481,0.0002,2]
[357303752,1744000238371,-1253.875,0.000199,2]
[357303753,1744000238433,-755.93374676,0.000199,2]
[357303754,1744000238443,-587.89550501,0.0002,2]
[357303755,1744000238455,-427.23904402,0.0002,2]
[357303756,1744000238466,-1714.15850713,0.0002,2]
[357303757,1744000238477,-290.65298934,0.0002,2]
[357303758,1744000238489,-1285.76508618,0.0002,2]
[357303792,1744000240379,-615.12364159,0.0002,2]
[357303793,1744000240396,-401.48239815,0.0002,2]
[357303794,1744000240586,-2824.81060848,0.0002,2]
[357303795,1744000240598,-1710.38116899,0.0002,2]
[357303796,1744000240610,-11208.5,0.0002,2]
[357303797,1744000240664,-385.62524,0.0002,2]
[357303798,1744000240675,-274.41682848,0.0002,2]
[357303799,1744000240832,-4338.10210443,0.0002,2]
[357303808,1744000243895,-1592.45169305,0.0002,2]
[357303809,1744000243915,-10795.68000001,0.0002,2]
[357303853,1744000246313,-8969.90115002,0.0002,2]
[357303855,1744000246325,-3986.50608536,0.0002,2]
[357303856,1744000246337,-75160.28611663,0.0002,2]
[357303857,1744000246390,-4941.92946291,0.0002,2]
[357303858,1744000246426,-337.03899363,0.0002,2]
[357303859,1744000246692,-6185.92,0.0002,2]
[357303863,1744000246827,-61884.13573196,0.0002,2]
[357303864,1744000246842,-312.4,0.0002,2]
[357303865,1744000246853,-33919.0510203,0.0002,2]
[357303870,1744000328111,2000.0,7.945e-05,2]
[357303871,1744000328133,2000.0,7.945e-05,2]
[357303872,1744000328155,1108.78525,7.945e-05,2]
[357303873,1744000481025,170.27,0.00013699,2]
[357303875,1744000626543,209.34,0.00032932,120]
[357303877,1744001219620,164.86814316,0.0002,23]
[357303882,1744001329200,195.36,0.00027978,120]
[357303892,1744001431469,-886.56,0.00017215,2]
[357303893,1744001431480,-250.0,0.00017949,2]
[357303894,1744001431489,-274.09390506,0.00018583,2]
[357303895,1744001431499,-195.36,0.00018652,2]
[357303896,1744001431508,-179.84268047,0.00018664,2]
[357303897,1744001431517,-237.76486113,0.00018664,2]
[357303898,1744001431582,-36.32904393,0.00018664,2]
[357303899,1744001431591,-355.21878303,0.00018683,2]
[357303900,1744001431603,-286.24606077,0.00018683,2]
[357303901,1744001431614,-885.7451562,0.00018683,2]
[357303902,1744001431624,-5.80463395,0.00018764,2]
[357303903,1744001431805,-325.11200482,0.00018764,2]
[357303904,1744001431863,-441.163,0.00018764,2]
[357303914,1744001437496,-461.2,0.00018604,2]
[357303915,1744001437556,-252.41,0.00018604,2]
[357303916,1744001437566,-72.49036123,0.00018764,2]
[357303917,1744001437575,-200.0,0.00018789,2]
[357303918,1744001437584,-200.0,0.00018879,2]
[357303919,1744001437594,-250.0,0.00018936,2]
[357303920,1744001437603,-250.0,0.00018936,2]
[357303921,1744001437612,-586.66765816,0.00019,2]
[357303922,1744001437622,-250.0,0.00019,2]
[357303923,1744001437635,-164.88,0.00019035,2]
[357303924,1744001437644,-579.13639861,0.000191,2]
[357303925,1744001437654,-217.92,0.00019119,2]
[357303926,1744001437664,-200.0,0.00019137,7]
[357303927,1744001437673,-1000.0,0.00019169,2]
[357303928,1744001437684,-150.0,0.00019184,2]
[357303929,1744001437694,-179.84268047,0.00019232,2]
[357303930,1744001437703,-300.0,0.00019398,2]
[357303931,1744001437713,-1344.1888171,0.00019399,2]
[357303932,1744001437723,-886.56,0.00019479,2]
[357303934,1744001437733,-1149.38,0.00019508,2]
[357303936,1744001437745,-605.83,0.00019728,2]
[357303937,1744001437757,-170.67,0.00019776,2]
[357303938,1744001437766,-179.84268047,0.000198,2]
[357303939,1744001437776,-441.25194121,0.0001981,2]
[357303940,1744001437785,-156.94179598,0.00019873,2]
[357303941,1744001437794,-343.60637912,0.00019873,2]
[357303942,1744001437804,-155.73046179,0.00019873,2]
[357303944,1744001437813,-500.0,0.00019873,2]
[357303946,1744001437823,-500.0,0.00019873,2]
[357303948,1744001437834,-500.0,0.00019873,2]
[357303950,1744001437844,-160.3228719,0.00019873,2]
[357303952,1744001437854,-17046.71930835,0.0001989,2]
[357303954,1744001437866,-383.97387593,0.0001989,2]
[357303957,1744001437892,-1363.83747749,0.0001989,2]
[357303960,1744001437904,-2360.87539138,0.0001989,2]
[357303962,1744001437916,-1572.3821947,0.0001989,2]
[357303964,1744001437925,-1253.471,0.00019899,2]
[357303966,1744001437935,-850.0,0.00019899,2]
[357303968,1744001437944,-157.23375624,0.000199,2]
[357303970,1744001437954,-134.73489228,0.000199,2]
[357303972,1744001437965,-6451.56890772,0.000199,2]
[357303974,1744001437975,-859.8964,0.000199,2]
[357303976,1744001437984,-403.00187588,0.000199,2]
[357303980,1744001438005,-158.05842412,0.000199,2]
[357303982,1744001438014,-752.36148507,0.000199,2]
[357303984,1744001438025,-271.72249796,0.000199,2]
[357304072,1744001443215,-9820.95321697,0.000199,2]
[357304074,1744001443225,-36311.84678303,0.000199,2]
[357304076,1744001443263,-7742.04929856,0.000199,2]
[357304077,1744001443274,-500.84279551,0.000199,2]
[357304078,1744001443349,-1607.35700907,0.000199,2]
[357304079,1744001443358,-582.76537387,0.000199,2]
[357304082,1744001443368,-1645.02761706,0.000199,2]
[357304085,1744001443383,-3835.0,0.000199,2]
[357304087,1744001443466,-324.57768294,0.000199,2]
[357304088,1744001443476,-160.52037432,0.000199,2]
[357304089,1744001443486,-283.37965274,0.000199,2]
[357304090,1744001443498,-880.86585084,0.000199,2]
[357304091,1744001443525,-794.56257618,0.000199,2]
[357304092,1744001443536,-1535.88900001,0.000199,2]
[357304094,1744001443840,-769.47,0.000199,2]
[357304095,1744001443852,-732.65171,0.000199,2]
[357304138,1744001444556,-2865.919197,0.000199,2]
[357304139,1744001444568,-614.704,0.000199,2]
[357304140,1744001444580,-1695.870176,0.000199,2]
[357304141,1744001444599,-19315.32584751,0.000199,2]
[357304142,1744001444622,-5575.82215118,0.000199,2]
[357304143,1744001444634,-1519.81397277,0.000199,2]
[357304144,1744001444644,-1347.68948982,0.000199,2]
[357304145,1744001444653,-500.0,0.00019908,2]
[357304146,1744001444663,-501.57045553,0.00019973,2]
[357304147,1744001444672,-161.73180093,0.00019973,2]
[357304148,1744001444682,-500.0,0.00019973,2]
[357304149,1744001444691,-500.0,0.00019973,2]
[357304150,1744001444701,-507.14570927,0.00019973,2]
[357304151,1744001444710,-502.41170348,0.00019973,2]
[357304152,1744001444720,-502.22703452,0.00019973,2]
[357304153,1744001444729,-500.0,0.00019973,2]
[357304154,1744001444739,-636.83711825,0.00019973,2]
[357304155,1744001444750,-500.0,0.00019973,2]
[357304156,1744001444759,-153.04065958,0.00019973,2]
[357304157,1744001444768,-500.4197132,0.00019973,2]
[357304158,1744001444778,-500.0,0.00019973,2]
[357304159,1744001444787,-500.0,0.00019973,2]
[357304160,1744001444797,-179.19,0.0001999,2]
[357304161,1744001444806,-179.19,0.0001999,2]
[357304162,1744001444816,-179.19,0.0001999,2]
[357304163,1744001444825,-179.19,0.0001999,2]
[357304164,1744001444835,-179.19,0.0001999,2]
[357304165,1744001444846,-1000.0,0.00019999,2]
[357304166,1744001444855,-1000.0,0.00019999,2]
[357304167,1744001444864,-322.20272431,0.00019999,2]
[357304168,1744001444874,-300.0,0.00019999,2]
[357304169,1744001444884,-714.35322463,0.00019999,2]
[357304170,1744001444893,-1000.0,0.00019999,2]
[357304171,1744001444903,-990.9257,0.00019999,2]
[357304172,1744001444912,-1000.0,0.00019999,2]
[357304173,1744001444922,-188.85892567,0.00019999,2]
[357304174,1744001444931,-197.17326583,0.00019999,2]
[357304175,1744001444940,-1892.0,0.0002,2]
[357304176,1744001444950,-7321.81618494,0.0002,2]
[357304177,1744001444962,-44609.35994443,0.0002,2]
[357304192,1744001445512,-92479.36679763,0.0002,2]
[357304210,1744001445745,-40154.20000098,0.0002,2]
[357304211,1744001445757,-10324.31103385,0.0002,2]
[357304213,1744001445771,-6260.8256694,0.0002,2]
[357304222,1744001445861,-84182.68808418,0.0002,2]
[357304223,1744001445918,-770.0,0.0002,2]
[357304247,1744001810013,170.27,0.00013699,2]
[357304248,1744001883419,277.5,0.00032932,120]
[357304251,1744001998712,-250.0,0.00019167,2]
[357304252,1744002010761,511.0,0.000192,2]
[357304253,1744002026390,2000.0,0.00039623,30]
[357304254,1744002042021,2000.0,0.00039623,60]
[357304255,1744002162476,2000.0,0.00039623,60]
[357304260,1744002550809,519.0,0.00033,120]
[357304265,1744002631643,-797.9,0.00016919,2]
[357304266,1744002631653,-250.0,0.00018345,2]
[357304267,1744002631663,-250.0,0.00018611,2]
[357304268,1744002631673,-826.42,0.00018777,2]
[357304269,1744002631683,-826.42,0.00018782,2]
[357304270,1744002631693,-826.42,0.00018786,2]
[357304271,1744002631703,-826.42,0.00018791,2]
[357304272,1744002631713,-826.42,0.00018796,2]
[357304273,1744002631723,-826.42,0.00018801,2]
[357304274,1744002631734,-826.42,0.00018806,2]